fUSD/lending_fUSD_20260213
["ID","MTS","AMOUNT","RATE_DAILY","PERIOD"]
[405340604,1771014646454,-858.71047212,0.00018,2]
[405340605,1771014646578,-1149.80347182,0.00018,2]
[405340606,1771014653929,9930.8213226,0.00012485,2]
[405340610,1771015161957,1094.17,0.00011335,2]
[405340611,1771015162254,1094.17,0.00011591,2]
[405340612,1771015162445,1094.17,0.00011847,2]
[405340613,1771015162677,1094.17,0.00012102,2]
[405340614,1771015162873,1094.17,0.00012358,2]
[405340642,1771015700582,167.79,0.00011743,2]
[405340650,1771015831976,-500.0,0.00012614,2]
[405340651,1771015831987,-594.17,0.00012614,2]
[405340652,1771015831997,-81.26042822,0.00012614,2]
[405340653,1771015832008,-101.45071451,0.00012614,2]
[405340654,1771015832018,-253.0,0.00012614,2]
[405340655,1771015832027,-208.87653063,0.00012627,2]
[405340656,1771015832036,-1316.764,0.00012727,2]
[405340657,1771015832046,-155.974,0.00012727,2]
[405340658,1771015832055,-182.71114273,0.00012727,2]
[405340659,1771015832064,-233.95754351,0.0001287,2]
[405340660,1771015832076,-784.54454562,0.0001287,2]
[405340661,1771015832087,-75.66791087,0.0001287,2]
[405340662,1771015832096,-1075.52169745,0.00012887,2]
[405340663,1771015832107,-6882.58,0.00012887,2]
[405340664,1771015832119,-6425.0118591,0.00012887,2]
[405340665,1771015832129,-1470.07670614,0.00012887,2]
[405340666,1771015832140,-8507.24953731,0.00012887,2]
[405340668,1771015832149,-500.0,0.00012979,2]
[405340669,1771015832158,-500.0,0.00012979,2]
[405340671,1771015832168,-151.0,0.00012979,2]
[405340673,1771015832178,-200.0,0.00012979,2]
[405340674,1771015832187,-500.0,0.00012979,2]
[405340675,1771015832196,-200.0,0.00012979,2]
[405340676,1771015832206,-500.0,0.00012987,2]
[405340677,1771015832219,-150.0,0.00013124,2]
[405340678,1771015832228,-1094.17,0.00013125,2]
[405340679,1771015832237,-1094.17,0.00013381,2]
[405340680,1771015832246,-1094.17,0.00013637,2]
[405340681,1771015832257,-500.0,0.00013698,2]
[405340682,1771015832267,-500.0,0.00013698,2]
[405340683,1771015832277,-500.0,0.00013698,2]
[405340684,1771015832288,-648.32121275,0.00013698,2]
[405340685,1771015832299,-504.54469483,0.00013698,2]
[405340686,1771015832308,-500.0,0.00013698,2]
[405340687,1771015832318,-500.0,0.00013698,2]
[405340688,1771015832327,-500.0,0.00013698,2]
[405340689,1771015832338,-500.0,0.00013698,2]
[405340690,1771015832348,-505.994553,0.00013698,2]
[405340691,1771015832358,-500.0,0.00013698,2]
[405340692,1771015832367,-500.0,0.00013698,2]
[405340693,1771015832376,-500.0,0.00013698,2]
[405340694,1771015832386,-500.0,0.00013698,2]
[405340695,1771015832395,-530.26100019,0.00013698,2]
[405340696,1771015832404,-500.0,0.00013698,2]
[405340697,1771015832414,-500.0,0.00013698,2]
[405340698,1771015832424,-500.0,0.00013698,2]
[405340699,1771015832433,-500.0,0.00013698,2]
[405340700,1771015832443,-500.0,0.00013698,2]
[405340701,1771015832452,-230.81799986,0.00013698,2]
[405340702,1771015832462,-4760.3,0.00013698,2]
[405340703,1771015832473,-4760.3,0.00013698,2]
[405340704,1771015832482,-4760.3,0.00013698,2]
[405340705,1771015832492,-4760.3,0.00013698,2]
[405340706,1771015832501,-4760.3,0.00013698,2]
[405340707,1771015832511,-247.81,0.00013781,2]
[405340708,1771015832520,-500.0,0.00013804,2]
[405340709,1771015832530,-500.0,0.00013875,2]
[405340710,1771015832539,-500.0,0.00013875,2]
[405340711,1771015832549,-500.0,0.00013875,2]
[405340712,1771015832559,-1094.17,0.00013892,2]
[405340713,1771015832568,-1094.17,0.00014148,2]
[405340714,1771015832578,-1094.17,0.00014404,2]
[405340715,1771015832587,-9999.99,0.00014504,2]
[405340716,1771015832596,-150.99,0.00014504,2]
[405340717,1771015832606,-1094.17,0.00014659,2]
[405340718,1771015832615,-109581.18,0.0001468,2]
[405340719,1771015832624,-1000.0,0.0001473,2]
[405340720,1771015832633,-1632.98,0.00014754,2]
[405340721,1771015832643,-356.2,0.00014785,2]
[405340722,1771015832652,-2640.45,0.00014827,2]
[405340723,1771015832662,-2017.58,0.00014848,2]
[405340724,1771015832672,-13554.29,0.00014868,2]
[405340725,1771015832683,-1000.0,0.00014891,2]
[405340726,1771015832692,-1094.17,0.00014915,2]
[405340727,1771015832702,-993.77,0.00014963,2]
[405340728,1771015832711,-250.0,0.00015,2]
[405340729,1771015832721,-1094.17,0.00015171,2]
[405340730,1771015832731,-173.38608461,0.00015226,2]
[405340731,1771015832740,-160.0,0.00015226,2]
[405340732,1771015832749,-1094.17,0.00015427,2]
[405340733,1771015832759,-356.2,0.00015606,2]
[405340734,1771015832768,-1094.17,0.00015682,2]
[405340735,1771015832778,-993.77,0.00015711,2]
[405340736,1771015832787,-1094.17,0.00015938,2]
[405340737,1771015832797,-575.78,0.00016005,2]
[405340738,1771015832806,-1094.17,0.00016194,2]
[405340739,1771015832816,-356.2,0.00016428,2]
[405340740,1771015832826,-10606.69,0.00016457,2]
[405340741,1771015832836,-993.77,0.0001646,2]
[405340742,1771015832845,-1000.0,0.00016571,2]
[405340743,1771015832854,-200.0,0.00016639,2]
[405340744,1771015832864,-325.38,0.00016665,2]
[405340745,1771015832874,-1852.42,0.00016943,2]
[405340746,1771015832883,-993.77,0.00017208,2]
[405340747,1771015832893,-356.2,0.00017249,2]
[405340748,1771015832902,-200.18551342,0.00017365,2]
[405340749,1771015832911,-575.78,0.00017375,2]
[405340750,1771015832921,-206.0,0.00017468,2]
[405340751,1771015832931,-167.79,0.00017615,2]
[405340752,1771015832940,-15001.45848198,0.0001763,2]
[405340753,1771015832951,-264.0,0.00017644,2]
[405340754,1771015832961,-32832.125,0.0001773,2]
[405340755,1771015832971,-1000.0,0.0001773,2]
[405340756,1771015832981,-10600.13923526,0.00017799,2]
[405340757,1771015832990,-800.0,0.00017808,2]
[405340758,1771015832999,-338.0,0.0001781,2]
[405340759,1771015833009,-500.0,0.00017829,2]
[405340760,1771015833018,-500.0,0.00017829,2]
[405340761,1771015833028,-4760.3,0.00017829,2]
[405340762,1771015833038,-130248.05828477,0.0001783,2]
[405340763,1771015833049,-366.198,0.00017899,2]
[405340764,1771015833059,-661.47,0.00017899,2]
[405340765,1771015833069,-500.0,0.00017899,2]
[405340766,1771015833079,-10163.6,0.000179,2]
[405340767,1771015833090,-2430.3478,0.000179,2]
[405340768,1771015833100,-993.77,0.00017956,2]
[405340769,1771015833109,-1827.83673672,0.0001797,2]
[405340770,1771015833119,-1291.64542224,0.0001797,2]
[405340771,1771015833128,-809.78229186,0.0001797,3]
[405340772,1771015833137,-3036.38326915,0.0001797,2]
[405340773,1771015833147,-1959.42965497,0.0001797,2]
[405340774,1771015833157,-3403.1563373,0.0001797,2]
[405340775,1771015833167,-7226.0,0.00017973,2]
[405340776,1771015833177,-228.58755702,0.0001799,2]
[405340777,1771015833187,-151.0,0.00017995,2]
[405340778,1771015833196,-151.0,0.00017997,2]
[405340779,1771015833206,-151.0,0.00017997,2]
[405340780,1771015833219,-210.6459115,0.00017998,2]
[405340781,1771015833228,-1543.661517,0.00017998,2]
[405340782,1771015833238,-14552.3509219,0.00017998,2]
[405340783,1771015833248,-459778.0346879,0.00017998,2]
[405340784,1771015833258,-3971.5872822,0.00017998,2]
[405340785,1771015833453,-500.0,0.00017999,2]
[405340786,1771015833463,-500.0,0.00017999,2]
[405340787,1771015833473,-500.0,0.00017999,2]
[405340788,1771015833484,-500.0,0.00017999,2]
[405340789,1771015833494,-500.0,0.00017999,2]
[405340790,1771015833504,-500.0,0.00017999,2]
[405340791,1771015833513,-500.0,0.00017999,2]
[405340792,1771015833522,-500.0,0.00017999,2]
[405340793,1771015833532,-500.0,0.00017999,2]
[405340794,1771015833542,-500.0,0.00017999,2]
[405340795,1771015833553,-529.97276172,0.00017999,2]
[405340796,1771015833562,-661.47,0.00017999,2]
[405340797,1771015833573,-661.47,0.00017999,2]
[405340798,1771015833583,-661.47,0.00017999,2]
[405340799,1771015833593,-661.47,0.00017999,2]
[405340800,1771015833602,-661.47,0.00017999,2]
[405340801,1771015833612,-661.47,0.00017999,2]
[405340802,1771015833621,-661.47,0.00017999,2]
[405340803,1771015833631,-661.47,0.00017999,2]
[405340804,1771015833640,-661.47,0.00017999,2]
[405340805,1771015833649,-500.0,0.00017999,2]
[405340806,1771015833659,-500.0,0.00017999,2]
[405340807,1771015833668,-500.0,0.00017999,2]
[405340808,1771015833678,-500.0,0.00017999,2]
[405340809,1771015833687,-500.0,0.00017999,2]
[405340810,1771015833697,-500.0,0.00017999,2]
[405340811,1771015833707,-500.0,0.00017999,2]
[405340812,1771015833716,-500.0,0.00017999,2]
[405340813,1771015833726,-529.73506278,0.00017999,2]
[405340814,1771015833735,-4760.3,0.00017999,2]
[405340815,1771015833746,-4760.3,0.00017999,2]
[405340816,1771015833756,-1836.64598198,0.00017999,2]
[405340817,1771015833770,-2923.65401802,0.00017999,2]
[405340818,1771015833780,-4760.3,0.00017999,2]
[405340819,1771015833789,-4760.3,0.00017999,2]
[405340820,1771015833798,-4760.3,0.00017999,2]
[405340821,1771015833808,-4760.3,0.00017999,2]
[405340822,1771015833817,-4760.3,0.00017999,2]
[405340823,1771015833827,-4760.3,0.00017999,2]
[405340824,1771015833836,-4760.3,0.00017999,2]
[405340825,1771015833846,-150.0,0.00017999,2]
[405340826,1771015833855,-152.68102723,0.00017999,2]
[405340827,1771015833865,-500.0,0.00017999,2]
[405340828,1771015833874,-500.0,0.00017999,2]
[405340829,1771015833884,-500.0,0.00017999,2]
[405340830,1771015833893,-500.0,0.00017999,2]
[405340831,1771015833902,-500.0,0.00017999,2]
[405340832,1771015833912,-500.0,0.00017999,2]
[405340833,1771015833921,-257.82297263,0.00017999,2]
[405340834,1771015833930,-500.0,0.00017999,2]
[405340835,1771015833939,-500.0,0.00017999,2]
[405340836,1771015833949,-500.0,0.00017999,2]
[405340837,1771015833958,-500.0,0.00017999,2]
[405340838,1771015833967,-500.0,0.00017999,2]
[405340839,1771015833977,-157192.94221908,0.00018,2]
[405340840,1771015833988,-41358.95530546,0.00018,2]
[405340841,1771015834000,-43338.90984767,0.00018,2]
[405340842,1771015834015,-1254.41808677,0.00018,2]
[405340843,1771015834030,-287.06431718,0.00018,2]
[405340844,1771015834042,-1555.22270265,0.00018,2]
[405340845,1771015834054,-1575.21859507,0.00018,2]
[405340846,1771015837974,-1220.43367562,0.00018,2]
[405340847,1771015838031,-254.18043806,0.00018,2]
[405340848,1771015838043,-10659.80250457,0.00018,2]
[405340849,1771015838055,-1416.40035,0.00018,2]
[405340850,1771015838067,-446.26987052,0.00018,2]
[405340851,1771015838078,-315.0,0.00018,2]
[405340852,1771015838098,-2002241.42588258,0.00018,2]
[405340853,1771015838108,-356.2,0.00018071,2]
[405340854,1771015838118,-166.66,0.00018198,2]
[405340855,1771015838129,-1000.0,0.00018412,2]
[405340856,1771015838138,-155.34959577,0.00018442,2]
[405340857,1771015838148,-15001.45848197,0.00018461,2]
[405340858,1771015838158,-166.66,0.00018565,2]
[405340859,1771015838168,-10600.13923524,0.000186,2]
[405340860,1771015838178,-356.2,0.00018892,2]
[405340861,1771015838188,-166.66,0.00018933,2]
[405340862,1771015838198,-522.0,0.00019,2]
[405340863,1771015838209,-15001.45848197,0.00019292,2]
[405340864,1771015838221,-166.66,0.00019301,2]
[405340865,1771015838231,-10600.13923524,0.00019401,2]
[405340866,1771015838241,-356.2,0.00019713,2]
[405340867,1771015838251,-1543.661517,0.00019823,2]
[405340869,1771015838261,-4933.790515,0.000199,3]
[405340871,1771015838271,-2482.93984821,0.0001995,15]
[405340873,1771015838282,-1535.99592116,0.0002,2]
[405340875,1771015838294,-176.8188652,0.0002,2]
[405340877,1771015838303,-4876.72866373,0.0002,2]
[405340879,1771015838313,-228.58755702,0.00020094,2]
[405340881,1771015838322,-151.0,0.00020101,2]
[405340882,1771015838332,-405414.8077491,0.00020104,2]
[405340886,1771015838352,-473.41175973,0.00020104,2]
[405340891,1771015838380,-793.66649967,0.00020104,2]
[405340901,1771015840450,-428.33574035,0.00020104,2]
[405340902,1771015840513,-52667.81293905,0.00020104,2]
[405340904,1771015840523,-15001.45848197,0.00020123,2]
[405340906,1771015840533,-6744.96641618,0.00020213,2]
[405340907,1771015840542,-1000.0,0.00020253,2]
[405340908,1771015840552,-661.47,0.00020344,2]
[405340909,1771015840563,-356.2,0.00020535,2]
[405340910,1771015840575,-151.0,0.00020548,2]
[405340911,1771015840585,-500.0,0.00020603,2]
[405340912,1771015840596,-151.0,0.00020603,2]
[405340913,1771015840606,-151.0,0.00020658,2]
[405340914,1771015840615,-255.786412,0.00020713,2]
[405340915,1771015840625,-358.0,0.0002073,2]
[405340916,1771015840634,-15001.45848197,0.00020954,2]
[405340917,1771015840644,-32141.0329682,0.00021,2]
[405340918,1771015840654,-12546.97,0.00021068,2]
[405340919,1771015840664,-356.2,0.00021356,2]
[405340920,1771015840674,-2023.75333842,0.00021439,2]
[405340922,1771015840683,-215.0,0.00021552,2]
[405340923,1771015840692,-1543.661517,0.00021647,2]
[405340924,1771015840702,-3403.1563373,0.00021694,2]
[405340925,1771015840711,-15001.45848197,0.00021785,2]
[405340926,1771015840721,-3247.0683917,0.0002192,2]
[405340927,1771015840730,-886.1809063,0.0002192,2]
[405340928,1771015840740,-4760.3,0.00021999,2]
[405340929,1771015840750,-391.60987072,0.00022,2]
[405340930,1771015840759,-138665.85,0.00022,2]
[405340931,1771015840768,-1000.0,0.00022095,2]
[405340932,1771015840778,-356.2,0.00022178,2]
[405340933,1771015840787,-459778.0346879,0.0002221,2]
[405340934,1771015840796,-151.0,0.0002221,2]
[405340935,1771015840806,-151.0,0.0002221,2]
[405340936,1771015840817,-151.0,0.0002221,2]
[405340937,1771015840826,-15001.45848197,0.00022616,2]
[405340938,1771015840836,-724.5188902,0.00022795,2]
[405340939,1771015840845,-197.7336875,0.00022795,2]
[405340940,1771015840855,-3491.22859264,0.00022798,2]
[405340941,1771015840864,-296.28,0.000228,7]
[405340942,1771015840873,-1813.63029813,0.00022957,2]
[405340943,1771015840883,-160.0,0.00023,2]
[405340944,1771015840892,-155.34959577,0.00023052,2]
[405340945,1771015840902,-200.0,0.00023411,2]
[405340946,1771015840912,-778.71846104,0.00023411,2]
[405340947,1771015840921,-15001.45848197,0.00023447,2]
[405340948,1771015840931,-1543.661517,0.00023472,2]
[405340949,1771015840941,-209.81,0.00023662,2]
[405340950,1771015840950,-210.6459115,0.00023706,2]
[405340951,1771015840959,-6899.81,0.00024194,2]
[405340952,1771015840969,-1291.6454222,0.00024258,2]
[405340953,1771015840979,-15001.45848197,0.00024278,2]
[405340954,1771015840988,-151.0,0.00024297,7]
[405340955,1771015840998,-138665.85,0.000243,2]
[405340956,1771015841007,-459778.0346879,0.00024315,2]
[405340957,1771015841017,-522.0,0.00024545,7]
[405340958,1771015841026,-1000.0,0.00024658,2]
[405340959,1771015841036,-2429.84724611,0.0002469,2]
[405340960,1771015841045,-182.92,0.00024896,2]
[405340961,1771015841054,-500.0,0.00024999,2]
[405340962,1771015841065,-661.47,0.00024999,2]
[405340963,1771015841075,-4760.3,0.00024999,2]
[405340964,1771015841084,-79464.89788277,0.00025,60]
[405340967,1771015844661,-1323.95192,0.00017799,2]
[405340991,1771015845958,-1833.91035365,0.00017799,2]
[405340993,1771015845971,-4294.21210833,0.00020202,2]
[405341000,1771015846067,-6305.92712691,0.00020202,2]
[405341002,1771015846079,-150.0,0.00020798,2]
[405341004,1771015846091,-10600.13923524,0.00021003,2]
[405341005,1771015846103,-51341.82138647,0.00025,60]
[405341007,1771015846115,-15001.45848197,0.00025109,2]
[405341009,1771015846127,-173.07076912,0.00025273,11]
[405341010,1771015846138,-661.47,0.00025299,2]
[405341012,1771015846150,-3403.1563373,0.00025417,2]
[405341014,1771015846162,-296.28,0.00027,7]
[405341016,1771015846174,-173.07076912,0.00027135,12]
[405341018,1771015846186,-150.0,0.00027185,2]
[405341020,1771015846199,-150.0,0.00027369,2]
[405341022,1771015846211,-322.46969385,0.0002737,2]
[405341023,1771015846226,-173.63752745,0.0002737,2]
[405341024,1771015846238,-300.0,0.00027397,2]
[405341025,1771015846250,-1307.35,0.00027397,30]
[405341026,1771015846262,-500.0,0.00027397,20]
[405341027,1771015846275,-206.17,0.0002749,2]
[405341028,1771015846286,-155.34959577,0.00027663,2]
[405341029,1771015846300,-357.94842784,0.0002769,14]
[405341030,1771015846312,-160.0,0.00028,3]
[405341031,1771015846324,-7272.94751287,0.00028,2]
[405341032,1771015846339,-16553.04595751,0.00028,2]
[405341035,1771015846354,-19504.499011,0.00028,2]
[405341040,1771015846400,-5000.0,0.00028,2]
[405341043,1771015846418,-1133.42961484,0.00028,2]
[405341084,1771016493266,1064.598,0.00012423,2]
[405341085,1771016493356,226.653,0.00012423,2]
[405341094,1771016852121,563.03703882,0.00012486,2]
[405341098,1771016954132,-253.0,0.00012531,2]
[405341099,1771016954153,-250.0,0.00012554,2]
[405341100,1771016954173,-399.0,0.00012585,2]
[405341101,1771016954194,-300.0,0.00012585,2]
[405341102,1771016954215,-4239.998408,0.00012586,2]
[405341116,1771017032067,-1381.34,0.00012586,2]
[405341117,1771017032079,-6379.82837763,0.00012586,2]
[405341118,1771017032089,-12869.63889269,0.00012666,2]
[405341119,1771017032099,-500.0,0.00012686,2]
[405341120,1771017032109,-500.0,0.00013698,2]
[405341121,1771017032118,-500.0,0.00013698,2]
[405341122,1771017032128,-500.0,0.00013698,2]
[405341123,1771017032138,-500.0,0.00013698,2]
[405341124,1771017032147,-500.0,0.00013698,2]
[405341125,1771017032157,-250.0,0.00013845,2]
[405341126,1771017032166,-506.64276844,0.00013965,2]
[405341127,1771017032197,-1047.8974871,0.00013965,2]
[405341128,1771017032207,-563.03703882,0.00014251,2]
[405341129,1771017032216,-173.38608461,0.0001534,2]
[405341130,1771017032226,-160.0,0.0001534,2]
[405341131,1771017032235,-2771.32,0.00015601,2]
[405341132,1771017032245,-12001.16678557,0.00015621,2]
[405341133,1771017032254,-563.03703882,0.00016016,2]
[405341134,1771017032264,-150.99,0.00016116,2]
[405341135,1771017032277,-9999.99,0.00016116,2]
[405341136,1771017032286,-6345.41585196,0.00016682,2]
[405341161,1771017038196,-1274.14311857,0.00016682,2]
[405341162,1771017038252,-576.1194027,0.00016682,2]
[405341163,1771017038311,-1605.0,0.00016682,2]
[405341167,1771017040185,-372.80333372,0.00016682,2]
[405341168,1771017040196,-3561.99998,0.00016682,2]
[405341169,1771017040207,-315.041611,0.00016682,2]
[405341170,1771017040218,-335.38,0.00016682,2]
[405341171,1771017040239,-1308.7325,0.00016682,2]
[405341172,1771017040295,-488.90722828,0.00016682,2]
[405341173,1771017040306,-1031.34,0.00016682,2]
[405341174,1771017040318,-39515.10119593,0.00016682,2]
[405341175,1771017040327,-3485.03628294,0.00017617,2]
[405341176,1771017040336,-500.0,0.00017717,2]
[405341177,1771017040346,-1000.0,0.00017729,2]
[405341178,1771017040355,-481.89542729,0.00017742,2]
[405341179,1771017040364,-1660.18,0.0001792,2]
[405341180,1771017040374,-200.0,0.0001792,2]
[405341181,1771017040384,-6899.81,0.00018165,2]
[405341182,1771017040393,-155.34959577,0.00018528,2]
[405341183,1771017040405,-12001.16678557,0.00018656,2]
[405341184,1771017040415,-1554.54025554,0.00018927,2]
[405341185,1771017040424,-2500.0,0.00018928,2]
[405341186,1771017040434,-7420.09746474,0.00018982,2]
[405341187,1771017040443,-522.0,0.00019,2]
[405341188,1771017040453,-500.0,0.00019027,2]
[405341189,1771017040462,-500.0,0.00019027,2]
[405341190,1771017040472,-70811.45745444,0.00019028,2]
[405341191,1771017040483,-327.84001672,0.00019028,2]
[405341196,1771017040607,-1521.46746858,0.00019028,2]
[405341197,1771017040618,-342324.19506026,0.00019028,2]
[405341198,1771017040627,-200.0,0.00019082,2]
[405341199,1771017040636,-9507.1,0.00020735,2]
[405341200,1771017040646,-209.0,0.00021008,2]
[405341201,1771017040655,-221.0812868,0.00021248,2]
[405341202,1771017040664,-7420.09746466,0.00021406,2]
[405341203,1771017040675,-639.83065383,0.00021678,2]
[405341204,1771017040684,-12001.16678557,0.00021691,2]
[405341205,1771017040694,-5348.8147,0.00021818,2]
[405341206,1771017040704,-5000.0,0.00021918,2]
[405341207,1771017040713,-160.0,0.00023,2]
[405341208,1771017040723,-993.38271848,0.00023132,2]
[405341209,1771017040732,-7420.09746466,0.0002383,2]
[405341210,1771017040742,-1554.54025554,0.00023888,2]
[405341211,1771017040752,-565.26643937,0.00024057,2]
[405341212,1771017040762,-6629.59755568,0.00024445,2]
[405341213,1771017040772,-151.0,0.00024526,7]
[405341214,1771017040781,-500.0,0.00024528,2]
[405341215,1771017040791,-500.0,0.00024528,2]
[405341216,1771017040800,-500.0,0.00024528,2]
[405341217,1771017040809,-500.0,0.00024528,2]
[405341218,1771017040819,-500.0,0.00024528,2]
[405341219,1771017040828,-2684.928996,0.00024529,2]
[405341220,1771017040838,-344409.672516,0.00024529,2]
[405341221,1771017040848,-522.0,0.00024545,7]
[405341222,1771017040857,-1000.0,0.00024658,2]
[405341223,1771017040866,-12001.16678557,0.00024726,2]
[405341224,1771017040876,-788.97233513,0.00024741,2]
[405341225,1771017040886,-500.0,0.00025178,2]
[405341226,1771017040895,-500.0,0.0002594,2]
[405341227,1771017040905,-3240.0,0.00025941,2]
[405341228,1771017040914,-7420.09746466,0.00026255,2]
[405341229,1771017040928,-6629.59755566,0.00026687,2]
[405341230,1771017040938,-1033.31633776,0.00026911,2]
[405341231,1771017040947,-2684.928996,0.00027011,2]
[405341232,1771017040957,-9042.0,0.00027374,2]
[405341233,1771017040966,-2771.32,0.00027382,2]
[405341234,1771017040975,-1225.64,0.00027397,30]
[405341235,1771017040985,-300.0,0.00027397,2]
[405341236,1771017040994,-12001.16678557,0.0002776,2]
[405341237,1771017041003,-155.34959577,0.00027792,2]
[405341238,1771017041012,-164.8,0.000278,7]
[405341239,1771017041022,-151.0,0.00027999,3]
[405341240,1771017041032,-151.0,0.00027999,3]
[405341241,1771017041042,-151.0,0.00027999,3]
[405341242,1771017041052,-255.786412,0.00027999,3]
[405341243,1771017041061,-155.0,0.00028,3]
[405341244,1771017041071,-159.0,0.00028,3]
[405341245,1771017041081,-159.0,0.00028,3]
[405341246,1771017041091,-160.66038704,0.00028,3]
[405341247,1771017041101,-151.0,0.00028,2]
[405341248,1771017041110,-151.0,0.00028,2]
[405341249,1771017041120,-300.0,0.00028,3]
[405341250,1771017041129,-155.0,0.00028,3]
[405341251,1771017041139,-1506.0,0.00028,3]
[405341252,1771017041148,-152.0,0.00028,3]
[405341253,1771017041158,-152.0,0.00028,3]
[405341254,1771017041167,-155.0,0.00028,3]
[405341255,1771017041177,-1506.0,0.00028,3]
[405341256,1771017041186,-153.0,0.00028,3]
[405341257,1771017041201,-152.0,0.00028,3]
[405341258,1771017041216,-1506.0,0.00028,3]
[405341259,1771017041227,-155.0,0.00028,3]
[405341260,1771017041236,-153.0,0.00028,3]
[405341261,1771017041246,-152.0,0.00028,3]
[405341262,1771017041257,-1506.0,0.00028,3]
[405341263,1771017041273,-280.0,0.00028,3]
[405341264,1771017041283,-153.0,0.00028,3]
[405341265,1771017041293,-152.0,0.00028,3]
[405341266,1771017041303,-1506.0,0.00028,3]
[405341267,1771017041313,-153.0,0.00028,3]
[405341268,1771017041323,-1506.0,0.00028,3]
[405341269,1771017041333,-152.0,0.00028,3]
[405341270,1771017041343,-160.37537981,0.00028,3]
[405341271,1771017041353,-153.0,0.00028,3]
[405341272,1771017041363,-1506.0,0.00028,3]
[405341273,1771017041375,-152.0,0.00028,3]
[405341274,1771017041386,-153.0,0.00028,3]
[405341275,1771017041395,-1506.0,0.00028,3]
[405341276,1771017041405,-152.0,0.00028,3]
[405341277,1771017041416,-153.0,0.00028,3]
[405341278,1771017041426,-152.0,0.00028,3]
[405341279,1771017041436,-1506.0,0.00028,3]
[405341280,1771017041445,-1506.0,0.00028,3]
[405341281,1771017041455,-153.0,0.00028,3]
[405341282,1771017041465,-152.0,0.00028,3]
[405341283,1771017041474,-1506.0,0.00028,3]
[405341284,1771017041484,-153.0,0.00028,3]
[405341285,1771017041495,-152.0,0.00028,3]
[405341286,1771017041504,-153.0,0.00028,3]
[405341287,1771017041515,-1506.0,0.00028,3]
[405341288,1771017041524,-152.0,0.00028,3]
[405341289,1771017041534,-153.0,0.00028,3]
[405341290,1771017041544,-152.0,0.00028,3]
[405341291,1771017041559,-153.0,0.00028,3]
[405341292,1771017041569,-1506.0,0.00028,3]
[405341293,1771017041579,-152.0,0.00028,3]
[405341294,1771017041588,-153.0,0.00028,3]
[405341295,1771017041599,-1506.0,0.00028,3]
[405341296,1771017041610,-152.0,0.00028,3]
[405341297,1771017041622,-153.0,0.00028,3]
[405341298,1771017041632,-1506.0,0.00028,3]
[405341299,1771017041643,-152.0,0.00028,3]
[405341300,1771017041652,-153.0,0.00028,3]
[405341301,1771017041662,-1506.0,0.00028,3]
[405341302,1771017041671,-152.0,0.00028,3]
[405341303,1771017041680,-153.0,0.00028,3]
[405341304,1771017041690,-1506.0,0.00028,3]
[405341305,1771017041699,-152.0,0.00028,3]
[405341306,1771017041709,-153.0,0.00028,3]
[405341307,1771017041719,-1506.0,0.00028,3]
[405341308,1771017041728,-152.0,0.00028,3]
[405341309,1771017041737,-1506.0,0.00028,3]
[405341310,1771017041747,-153.0,0.00028,3]
[405341311,1771017041756,-1506.0,0.00028,3]
[405341312,1771017041766,-153.0,0.00028,3]
[405341313,1771017041775,-152.0,0.00028,3]
[405341314,1771017041785,-1506.0,0.00028,3]